{"text_format":"3","workbook":"xlsx","n_sheets":1,"sheets":["רשימת קניות"],"not_rendered":{"images":1,"defined_names":3},"read":"whole","date_system":"1900"}

{"sheet":"רשימת קניות","index":0,"n_rows":31,"n_cols":8,"rows_kept":31}
[null,"רשימת קניות"]
[null,"תאריך"]
[null,"בוצע?","פריט","קטגוריה","כמות","מחיר","מחיר מורחב","מותג/הערות"]
[null,null,"תפוזים","פירות וירקות",null,null,{"$f":"IFERROR(SUM(רשימת_קניות[[#This Row],[כמות]]*רשימת_קניות[[#This Row],[מחיר]]), \"\")","v":{"v":0,"d":"₪ 0.00"}}]
[null,null,"תפוחים","פירות וירקות",null,null,{"$f":"IFERROR(SUM(רשימת_קניות[[#This Row],[כמות]]*רשימת_קניות[[#This Row],[מחיר]]), \"\")","v":{"v":0,"d":"₪ 0.00"}}]
[null,null,"בננות","פירות וירקות",null,null,{"$f":"IFERROR(SUM(רשימת_קניות[[#This Row],[כמות]]*רשימת_קניות[[#This Row],[מחיר]]), \"\")","v":{"v":0,"d":"₪ 0.00"}}]
[null,null,"חסה","פירות וירקות",null,null,{"$f":"IFERROR(SUM(רשימת_קניות[[#This Row],[כמות]]*רשימת_קניות[[#This Row],[מחיר]]), \"\")","v":{"v":0,"d":"₪ 0.00"}}]
[null,null,"עגבניות","פירות וירקות",null,null,{"$f":"IFERROR(SUM(רשימת_קניות[[#This Row],[כמות]]*רשימת_קניות[[#This Row],[מחיר]]), \"\")","v":{"v":0,"d":"₪ 0.00"}},"  "]
[null,null,"חלב ","מוצרי חלב",null,null,{"$f":"IFERROR(SUM(רשימת_קניות[[#This Row],[כמות]]*רשימת_קניות[[#This Row],[מחיר]]), \"\")","v":{"v":0,"d":"₪ 0.00"}}]
[null,null,"גבינה","מוצרי חלב",null,null,{"$f":"IFERROR(SUM(רשימת_קניות[[#This Row],[כמות]]*רשימת_קניות[[#This Row],[מחיר]]), \"\")","v":{"v":0,"d":"₪ 0.00"}}]
[null,null,"ביצים","מוצרי חלב",null,null,{"$f":"IFERROR(SUM(רשימת_קניות[[#This Row],[כמות]]*רשימת_קניות[[#This Row],[מחיר]]), \"\")","v":{"v":0,"d":"₪ 0.00"}}]
[null,null,"גבינת קוטג'","מוצרי חלב",null,null,{"$f":"IFERROR(SUM(רשימת_קניות[[#This Row],[כמות]]*רשימת_קניות[[#This Row],[מחיר]]), \"\")","v":{"v":0,"d":"₪ 0.00"}}]
[null,null,"בקר","בשר",null,null,{"$f":"IFERROR(SUM(רשימת_קניות[[#This Row],[כמות]]*רשימת_קניות[[#This Row],[מחיר]]), \"\")","v":{"v":0,"d":"₪ 0.00"}}]
[null,null,"עוף","בשר",null,null,{"$f":"IFERROR(SUM(רשימת_קניות[[#This Row],[כמות]]*רשימת_קניות[[#This Row],[מחיר]]), \"\")","v":{"v":0,"d":"₪ 0.00"}}]
[null,null,"כבש","בשר",null,null,{"$f":"IFERROR(SUM(רשימת_קניות[[#This Row],[כמות]]*רשימת_קניות[[#This Row],[מחיר]]), \"\")","v":{"v":0,"d":"₪ 0.00"}}]
[null,null,"מיץ","משקאות",null,null,{"$f":"IFERROR(SUM(רשימת_קניות[[#This Row],[כמות]]*רשימת_קניות[[#This Row],[מחיר]]), \"\")","v":{"v":0,"d":"₪ 0.00"}}]
[null,null,"קפה","משקאות",null,null,{"$f":"IFERROR(SUM(רשימת_קניות[[#This Row],[כמות]]*רשימת_קניות[[#This Row],[מחיר]]), \"\")","v":{"v":0,"d":"₪ 0.00"}}]
[null,null,"תה","משקאות",null,null,{"$f":"IFERROR(SUM(רשימת_קניות[[#This Row],[כמות]]*רשימת_קניות[[#This Row],[מחיר]]), \"\")","v":{"v":0,"d":"₪ 0.00"}}]
[null,null,"מים","משקאות",null,null,{"$f":"IFERROR(SUM(רשימת_קניות[[#This Row],[כמות]]*רשימת_קניות[[#This Row],[מחיר]]), \"\")","v":{"v":0,"d":"₪ 0.00"}}]
[null,null,"ספגטי","פסטה",null,null,{"$f":"IFERROR(SUM(רשימת_קניות[[#This Row],[כמות]]*רשימת_קניות[[#This Row],[מחיר]]), \"\")","v":{"v":0,"d":"₪ 0.00"}}]
[null,null,"אורז","פסטה",null,null,{"$f":"IFERROR(SUM(רשימת_קניות[[#This Row],[כמות]]*רשימת_קניות[[#This Row],[מחיר]]), \"\")","v":{"v":0,"d":"₪ 0.00"}}]
[null,null,"קופסת שימורים","מרק",null,null,{"$f":"IFERROR(SUM(רשימת_קניות[[#This Row],[כמות]]*רשימת_קניות[[#This Row],[מחיר]]), \"\")","v":{"v":0,"d":"₪ 0.00"}}]
[null,null,"אבקת מרק","מרק",null,null,{"$f":"IFERROR(SUM(רשימת_קניות[[#This Row],[כמות]]*רשימת_קניות[[#This Row],[מחיר]]), \"\")","v":{"v":0,"d":"₪ 0.00"}}]
[null,null,"לחם","מאפים",null,null,{"$f":"IFERROR(SUM(רשימת_קניות[[#This Row],[כמות]]*רשימת_קניות[[#This Row],[מחיר]]), \"\")","v":{"v":0,"d":"₪ 0.00"}}]
[null,null,"חטיפי צ'יפס","חטיפים",null,null,{"$f":"IFERROR(SUM(רשימת_קניות[[#This Row],[כמות]]*רשימת_קניות[[#This Row],[מחיר]]), \"\")","v":{"v":0,"d":"₪ 0.00"}}]
[null,null,"בייגלה","חטיפים",null,null,{"$f":"IFERROR(SUM(רשימת_קניות[[#This Row],[כמות]]*רשימת_קניות[[#This Row],[מחיר]]), \"\")","v":{"v":0,"d":"₪ 0.00"}}]
[null,null,"גלידה","חטיפים",null,null,{"$f":"IFERROR(SUM(רשימת_קניות[[#This Row],[כמות]]*רשימת_קניות[[#This Row],[מחיר]]), \"\")","v":{"v":0,"d":"₪ 0.00"}}]
[null,null,"עוגיות","חטיפים",null,null,{"$f":"IFERROR(SUM(רשימת_קניות[[#This Row],[כמות]]*רשימת_קניות[[#This Row],[מחיר]]), \"\")","v":{"v":0,"d":"₪ 0.00"}}]
[null,null,"צלחות נייר","ציוד",null,null,{"$f":"IFERROR(SUM(רשימת_קניות[[#This Row],[כמות]]*רשימת_קניות[[#This Row],[מחיר]]), \"\")","v":{"v":0,"d":"₪ 0.00"}}]
[null,null,"מפיות","ציוד",null,null,{"$f":"IFERROR(SUM(רשימת_קניות[[#This Row],[כמות]]*רשימת_קניות[[#This Row],[מחיר]]), \"\")","v":{"v":0,"d":"₪ 0.00"}}]
[{"$nulls":6},{"$f":"SUBTOTAL(109,רשימת_קניות[מחיר מורחב])","v":{"v":0,"d":"₪ 0.00"}}]